Workbook

Sheet Information
H2: 2023-06-30 | I2: 1 | J2: January
H3: =TODAY()-H2 -> -106
H4: =CONCATENATE(LOOKUP(MONTH(H2),I2:J17)," ",DAY(H2),", ",YEAR(H2)) -> June 30, 2023 | I4: 2 | J4: February
B8: Lessee Name: | C8: Lessee Name | I8: 3 | J8: March
B9: Sales Rep: | C9: Sales Rep | I9: 4 | J9: April
B10: Phone: | C10: Phone | I10: 5 | J10: May
B11: Equipment: | C11: Brief Equipment Description | I11: 6 | J11: June
B12: Equipment Cost: | C12: 35000 | I12: 7 | J12: July
I13: 8 | J13: August
B14: Commission (calculated): | C14: =C12*(C13/100) -> 0 | I14: 9 | J14: September
F15: =((C13)/100)+1 -> 1 | I15: 10 | J15: October
A16: 7) | I16: 11 | J16: November
B17: =IF(H3>0,"The Lease Rates associated with this quoter have expired. Please contact your Marlin Account Executive at 888-479-9111 for an updated file."," ") ->  | I17: 12 | J17: December

Sheet Quote
J1: =Information!H3 -> -106
C5: =IF(J1>0,"The Lease Rates associated with this quoter have expired. Please contact your Marlin Account Executive at 888-479-9111 for an updated file. The payments listed may be used as an estimate ONLY. Thank you.","") -> 
B9: =TODAY() -> 2023-03-16
B11: This quote has
B12: been prepared for: | C12: =Information!C8 -> Lessee Name
B13: Valid through: | C13: =Date+30 -> 2023-04-15
B15: =Information!B9 -> Sales Rep: | C15: =CONCATENATE(Information!C9,", Phone: ",Information!C10) -> Sales Rep, Phone: Phone
B17: Equipment: | C17: =Information!C11 -> Brief Equipment Description
B18: Equipment Cost: | C18: =Information!C12 -> 35000
B20: FAIR MARKET VALUE
C21: 24 Months | D21: 36 Months | E21: 48 Months | F21: 60 Months
B22: Monthly Payment | C22: =IF($C$18<=5000,$C$18*Information!$F$15*'Rate Sheet'!D8,IF($C$18<=12000,$C$18*Information!$F$15*'Rate Sheet'!D11,IF($C$18<=25000,$C$18*Information!$F$15*'Rate Sheet'!D12,IF($C$18<=50000,$C$18*Information!$F$15*'Rate Sheet'!#REF!,"Call for Rates")))) ->  | D22: =IF($C$18<=5000,$C$18*Information!$F$15*'Rate Sheet'!E8,IF($C$18<=12000,$C$18*Information!$F$15*'Rate Sheet'!E11,IF($C$18<=25000,$C$18*Information!$F$15*'Rate Sheet'!E12,IF($C$18<=50000,$C$18*Information!$F$15*'Rate Sheet'!#REF!,"Call for Rates")))) ->  | E22: =IF($C$18<=5000,$C$18*Information!$F$15*'Rate Sheet'!F8,IF($C$18<=12000,$C$18*Information!$F$15*'Rate Sheet'!F11,IF($C$18<=25000,$C$18*Information!$F$15*'Rate Sheet'!F12,IF($C$18<=50000,$C$18*Information!$F$15*'Rate Sheet'!#REF!,"Call for Rates")))) ->  | F22: =IF($C$18<=5000,$C$18*Information!$F$15*'Rate Sheet'!G8,IF($C$18<=12000,$C$18*Information!$F$15*'Rate Sheet'!G11,IF($C$18<=25000,$C$18*Information!$F$15*'Rate Sheet'!G12,IF($C$18<=50000,$C$18*Information!$F$15*'Rate Sheet'!#REF!,"Call for Rates")))) -> 
B23: Security Deposit | C23: 2 | D23: 2 | E23: 2 | F23: 2
B25: End of Lease Options: | C25: Purchase the equipment at Fair Market Value, extend lease,
C26: or return equipment.
B28: $1.00 BUY-OUT 0% PROMO
C29: 12 Months | D29: 24 Months | E29: 36 Months | F29: 48 Months | G29: 60 Months
B30: Monthly Payment | C30: =IF($C$18<=150000,$C$18*Information!$F$15*'Rate Sheet'!C8,"Call for Rates") -> 0 | D30: =IF($C$18<=150000,$C$18*Information!$F$15*'Rate Sheet'!D8,"Call for Rates") -> 0 | E30: =IF($C$18<=150000,$C$18*Information!$F$15*'Rate Sheet'!E8,"Call for Rates") -> 0 | F30: N/A | G30: N/A
B31: Advance Payment | C31: 0 | D31: 0 | E31: 0 | F31: 0 | G31: 0
B32: End of Lease Options: | C32: Purchase the equipment for $1.00.
B33: FAIR MARKET VALUE
C34: 12 Months | D34: 24 Months | E34: 36 Months | F34: 48 Months | G34: 60 Months
B35: Monthly Payment | C35: =IF($C$18<=150000,$C$18*Information!$F$15*'Rate Sheet'!C10,"Call for Rates") -> 1423.1 | D35: =IF($C$18<=150000,$C$18*Information!$F$15*'Rate Sheet'!D10,"Call for Rates") -> 958.51 | E35: =IF($C$18<=150000,$C$18*Information!$F$15*'Rate Sheet'!E10,"Call for Rates") -> 803.775 | F35: =IF($C$18<=150000,$C$18*Information!$F$15*'Rate Sheet'!F10,"Call for Rates") -> 720.09 | G35: =IF($C$18<=150000,$C$18*Information!$F$15*'Rate Sheet'!G10,"Call for Rates") -> 665.175
B36: Advance Payment | C36: 0 | D36: 0 | E36: 0 | F36: 0 | G36: 0
B37: End of Lease Options: | C37: Purchase the equipment for the FMV.
B38: $1.00 BUY-OUT
C39: 12 Months | D39: 24 Months | E39: 36 Months | F39: 48 Months | G39: 60 Months
B40: Monthly Payment | C40: =IF($C$18<=250000,$C$18*Information!$F$15*'Rate Sheet'!C$11,"Call for Rates") -> 3069.5 | D40: =IF($C$18<=250000,$C$18*Information!$F$15*'Rate Sheet'!D$11,"Call for Rates") -> 1606.5 | E40: =IF($C$18<=250000,$C$18*Information!$F$15*'Rate Sheet'!E$11,"Call for Rates") -> 1129.45 | F40: =IF($C$18<=250000,$C$18*Information!$F$15*'Rate Sheet'!F$11,"Call for Rates") -> 892.5 | G40: =IF($C$18<=250000,$C$18*Information!$F$15*'Rate Sheet'!G$11,"Call for Rates") -> 751.45
B41: Advance Payments | C41: 2 | D41: 2 | E41: 2 | F41: 2 | G41: 2
B42: End of Lease Options: | C42: Purchase the equipment for $1.00.
B43: 10% FIXED PRICE PURCHASE OPTION
C44: 12 Months | D44: 24 Months | E44: 36 Months | F44: 48 Months | G44: 60 Months
B45: Monthly Payment | C45: =IF($C$18<=150000,$C$18*Information!$F$15*'Rate Sheet'!#REF!,"Call for Rates") ->  | D45: =IF($C$18<=150000,$C$18*Information!$F$15*'Rate Sheet'!#REF!,"Call for Rates") ->  | E45: =IF($C$18<=150000,$C$18*Information!$F$15*'Rate Sheet'!#REF!,"Call for Rates") ->  | F45: =IF($C$18<=150000,$C$18*Information!$F$15*'Rate Sheet'!#REF!,"Call for Rates") ->  | G45: =IF($C$18<=150000,$C$18*Information!$F$15*'Rate Sheet'!#REF!,"Call for Rates") -> 
B46: Advance Payment | C46: 0 | D46: 0 | E46: 0 | F46: 0 | G46: 0
B47: End of Lease Options: | C47: Purchase the equipment for 10% of the Original Equipment Cost.
B51: FMV LEASE
C52: 12 Months | D52: 24 Months | E52: 36 Months | F52: 48 Months | G52: 60 Months
B53: Monthly Payment | C53: =IF($C$18<=250000,$C$18*Information!$F$15*'Rate Sheet'!C$10,"Call for Rates") -> 1423.1 | D53: =IF($C$18<=250000,$C$18*Information!$F$15*'Rate Sheet'!D$10,"Call for Rates") -> 958.51 | E53: =IF($C$18<=250000,$C$18*Information!$F$15*'Rate Sheet'!E$10,"Call for Rates") -> 803.775 | F53: =IF($C$18<=250000,$C$18*Information!$F$15*'Rate Sheet'!F$10,"Call for Rates") -> 720.09 | G53: =IF($C$18<=250000,$C$18*Information!$F$15*'Rate Sheet'!G$10,"Call for Rates") -> 665.175
B54: Advance Payments | C54: 2 | D54: 2 | E54: 2 | F54: 2 | G54: 2
B56: Annual Hours Maximum | C56: 1,000
B57: End of Lease Options: | C57: Purchase the equipment for the fair market value, continue renting, or return the equipment to your Kaeser dealer (condition and usage hour maximums apply)
B58: Eligible Equipment: | C58: Kaeser Aircenter Rotary Screw Compressors, SX, SK, SM, AS, ASD, BSD, CSD, Airtowers and ancillary attachments
B59: Soft-Cost Maximums | C59: 20% of Equipment Costs; soft costs in excess of 20% will be amortized fully over the life of the lease
B62: Please Note:
B63: Estimated payments shown are for companies in business 2 years or more.
B64: Documentation Fee of $75
B65: =CONCATENATE("For transactions over $150,000, please contact your sales representative, Courtney Koslosky at 856-505-4130 or Drew Campbell at 856-505-4454.") -> For transactions over $150,000, please contact your sales representative, Courtney Koslosky at 856-505-4130 or Drew Campbell at 856-505-4454.
B66: =CONCATENATE("Rates effective through ",Information!H4,".") -> Rates effective through June 30, 2023.
B67: Payments shown are subject to state and local taxes. Consult your tax advisor for more information.
B68: Subject to PEAC's credit approval and receipt of required documents.

Sheet Rate Sheet (hidden)
I1: 2018-03-31
B2: Lease Rate Factors
B7: Equipment Cost | C7: 12 | D7: 24 | E7: 36 | F7: 48 | G7: 60
B8: 0% Offering 1,000-25,000
B9: Blind Discount Needed
B10: FMV Offering 1,000-25,000 | C10: 0.04066 | D10: 0.027386 | E10: 0.022965 | F10: 0.020574 | G10: 0.019005
B11: Standard $1.00 buy-out 1,000-25,000 | C11: 0.0877 | D11: 0.0459 | E11: 0.03227 | F11: 0.0255 | G11: 0.02147
B12: Standard 10% FPPO 1,000-25,000
B13: Over 25,000 | D13: Please call your Lease Consultant for special rates.
D14: 0 | E14: 0 | F14: 0 | G14: 0
